bitfinex/quotes_SOLUSD_20251202
["timestamp","ask_amount","ask_price","bid_price","bid_amount"]
[1764655620253,1e-08,126.86,126.85,43.66749238]
[1764655620455,0.69000001,126.86,126.85,41.68213568]
[1764655621056,1e-08,126.86,126.85,44.26908846]
[1764655621427,1e-08,126.86,126.85,47.42752345]
[1764655622929,1e-08,126.86,126.85,49.42752344]
[1764655626958,1e-08,126.86,126.85,47.42752345]
[1764655627149,1e-08,126.86,126.85,49.42752344]
[1764655629161,1e-08,126.86,126.85,46.26908845]
[1764655629932,0.69,126.91,126.9,8.80994492]
[1764655630133,0.69,126.91,126.9,20.0768977]
[1764655631438,0.69,126.91,126.9,17.48994492]
[1764655631765,0.69,126.91,126.9,27.95711834]
[1764655632337,0.69,126.91,126.9,25.37016556]
[1764655638462,0.2,126.93,126.9,25.37016556]
[1764655638666,0.68,126.92,126.9,29.39901804]
[1764655638964,0.68,126.92,126.9,49.09956965]
[1764655639663,0.68,126.92,126.9,45.07071717]
[1764655645064,0.68,126.92,126.9,49.09956965]
[1764655645568,0.68,126.92,126.9,45.07071717]
[1764655648176,0.68,126.92,126.9,25.37016556]
[1764655648547,4.70885248,126.92,126.9,25.37016556]
[1764655649271,0.68,126.91,126.9,25.37016556]
[1764655649477,4.70885248,126.91,126.87,8.80994492]
[1764655649769,4.02885248,126.88,126.85,7.88332676]
[1764655650076,4.02885248,126.88,126.86,8.80994492]
[1764655650249,0.68,126.87,126.86,8.80994492]
[1764655653754,4.70885248,126.87,126.85,8.68]
[1764655654380,0.72,126.86,126.85,17.48994492]
[1764655655675,12.63165342,126.86,126.77,7.88830164]
[1764655655984,4.02885248,126.83,126.78,21.5187974]
[1764655656275,8.60366449,126.85,126.79,7.88705733]
[1764655656481,4.02885248,126.84,126.81,8.80994492]
[1764655656780,4.74885248,126.84,126.81,8.80994492]
[1764655656974,0.72,126.83,126.81,8.80994492]
[1764655659377,4.74885248,126.83,126.81,8.80994492]
[1764655659574,4.02885248,126.82,126.8,8.68]
[1764655659885,4.02885248,126.81,126.79,8.80994492]
[1764655660184,0.72,126.81,126.79,17.48994492]
[1764655660482,0.72,126.8,126.79,17.48994492]
[1764655660784,0.72,126.8,126.79,25.37700225]
[1764655664384,4.02885248,126.83,126.79,25.37700225]
[1764655664590,0.66,126.82,126.79,25.37700225]
[1764655665584,4.68885248,126.82,126.79,25.37700225]
[1764655665785,4.02885248,126.81,126.79,17.48994492]
[1764655665969,4.68885248,126.81,126.79,17.48994492]
[1764655666167,0.66,126.8,126.79,17.48994492]
[1764655667666,0.66,126.8,126.79,8.80994492]
[1764655667667,4.68885248,126.8,126.79,8.80994492]
[1764655667989,4.68885248,126.8,126.77,17.48994492]
[1764655668191,0.66,126.79,126.77,17.48994492]
[1764655668488,4.68885248,126.79,126.77,17.48994492]
[1764655668888,0.66,126.79,126.77,17.48994492]
[1764655669785,4.02885248,126.81,126.79,8.80994492]
[1764655669971,0.66,126.8,126.79,17.48994492]
[1764655672475,4.68885248,126.8,126.79,8.68]
[1764655673295,0.66,126.8,126.79,8.68]
[1764655673491,4.68885248,126.8,126.79,8.68]
[1764655675580,0.66,126.8,126.78,8.80994492]
[1764655675780,0.66,126.79,126.78,8.80994492]
[1764655676796,4.68885248,126.79,126.77,8.68]
[1764655677201,0.66,126.78,126.77,8.68]
[1764655677888,4.68885248,126.78,126.77,8.68]
[1764655678478,4.68885248,126.78,126.73,8.90994492]
[1764655678684,0.66,126.77,126.74,8.68]
[1764655678983,0.66,126.77,126.75,8.80994492]
[1764655680692,0.66,126.77,126.75,7.88938214]
[1764655680891,4.68885248,126.77,126.75,8.80994492]
[1764655681501,0.66,126.76,126.75,8.80994492]
[1764655682611,0.66,126.76,126.74,16.5700663]
[1764655682612,0.66,126.76,126.73,7.99062848]
[1764655682789,0.66,126.76,126.74,8.68]
[1764655683195,8.549331,126.76,126.73,0.1]
[1764655683518,12.57818348,126.76,126.73,8.78]
[1764655683698,0.66,126.75,126.73,8.78]
[1764655684021,0.66,126.75,126.74,8.80994492]
[1764655684182,0.66,126.76,126.74,8.80994492]
[1764655685305,0.66,126.76,126.74,16.69992468]
[1764655685507,7.88686449,126.8,126.76,8.80994492]
[1764655685692,4.68885248,126.79,126.76,8.80994492]
[1764655686214,0.66,126.78,126.76,8.80994492]
[1764655687113,12.57494675,126.81,126.76,12.8387974]
[1764655687300,0.66,126.8,126.76,12.8387974]
[1764655687498,0.66,126.8,126.78,8.80994492]
[1764655687720,0.66,126.8,126.78,17.50994492]
[1764655691731,0.69,126.82,126.78,25.39757076]
[1764655691892,0.69,126.81,126.78,25.39757076]
[1764655695918,4.02885248,126.8,126.78,17.50994492]
[1764655696295,0.69,126.79,126.78,17.50994492]
[1764655701829,11.16146429,126.79,126.75,16.56954635]
[1764655701999,2.58401341,126.78,126.75,16.56954635]
[1764655702333,3.27401341,126.78,126.75,16.56954635]
[1764655702513,3.27401341,126.77,126.75,16.56954635]
[1764655703043,0.69,126.77,126.75,16.56954635]
[1764655704228,10.47072368,126.8,126.76,8.80994492]
[1764655704436,0.69,126.78,126.76,8.80994492]
[1764655706707,2.58401341,126.77,126.75,16.56954635]
[1764655706910,2.58401341,126.76,126.73,7.99037395]
[1764655707098,3.27401341,126.77,126.75,8.80994492]
[1764655707303,0.69,126.78,126.75,8.80994492]
[1764655708715,2.58401341,126.77,126.75,8.80994492]
[1764655709126,0.69,126.77,126.75,8.80994492]
[1764655711029,0.69,126.77,126.75,16.69944113]
[1764655713009,0.69,126.77,126.75,17.50994492]
[1764655716835,0.69,126.77,126.75,17.50994492]
[1764655717015,2.58401341,126.76,126.73,17.58994492]
[1764655717514,0.7,126.75,126.73,17.58994492]
[1764655721027,0.7,126.75,126.73,25.48072177]
[1764655721446,3.28401341,126.75,126.73,8.78]
[1764655721912,0.65,126.74,126.73,8.78]
[1764655722117,3.23401341,126.74,126.73,0.1]
[1764655722535,0.65,126.74,126.73,0.1]
[1764655722712,3.23401341,126.74,126.73,0.1]
[1764655723441,11.12418225,126.74,126.73,0.1]
[1764655728643,8.54016884,126.74,126.73,0.1]
[1764655728846,11.12418225,126.74,126.73,0.1]
[1764655733827,3.23401341,126.74,126.73,0.1]
[1764655734028,11.12418225,126.74,126.73,0.1]
[1764655736744,3.23401341,126.74,126.73,0.1]
[1764655737353,11.12418225,126.74,126.73,0.1]
[1764655739829,10.47372702,126.75,126.73,0.1]
[1764655740262,11.12372702,126.75,126.73,0.1]
[1764655740757,8.53971361,126.75,126.73,0.1]
[1764655741273,11.12231505,126.77,126.73,8.90994492]
[1764655741556,2.58401341,126.76,126.73,8.90994492]
[1764655741852,3.23401341,126.76,126.73,8.90994492]
[1764655742749,2.58401341,126.74,126.73,8.90994492]
[1764655743055,3.23401341,126.75,126.73,8.90994492]
[1764655744435,0.65,126.75,126.73,8.90994492]
[1764655745160,3.23401341,126.75,126.73,8.90994492]
[1764655746260,0.65,126.74,126.73,8.90994492]
[1764655749258,0.65,126.74,126.73,0.1]
[1764655752643,3.23401341,126.74,126.73,0.1]
[1764655752842,0.65,126.74,126.73,0.1]
[1764655756339,11.12418225,126.74,126.66,2.68401341]
[1764655756643,2.58401341,126.69,126.67,8.7]
[1764655757044,2.58401341,126.72,126.66,8.90994492]
[1764655757045,3.26401341,126.68,126.66,8.90994492]
[1764655758470,0.68,126.68,126.66,8.90994492]
[1764655760870,4.72520667,126.68,126.66,8.8]
[1764655762266,12.61926675,126.68,126.66,8.8]
[1764655762684,0.68,126.67,126.66,8.8]
[1764655762850,4.72520667,126.67,126.66,8.8]
[1764655764775,4.72520667,126.67,126.66,0.1]
[1764655774566,0.68,126.67,126.66,0.1]
[1764655774881,4.72520667,126.67,126.66,0.1]
[1764655776394,0.68,126.68,126.66,0.1]
[1764655776574,4.72520667,126.68,126.66,0.1]
[1764655777585,0.68,126.67,126.66,0.1]
[1764655778863,4.72520667,126.67,126.66,0.1]
[1764655779586,12.61973576,126.67,126.66,0.1]
[1764655786075,0.68,126.67,126.66,0.1]
[1764655786467,12.61916715,126.68,126.66,0.1]
[1764655786667,0.68,126.67,126.66,0.1]
[1764655787767,4.72520667,126.67,126.66,0.1]
[1764655791900,4.04520667,126.68,126.66,0.1]
[1764655792100,4.72520667,126.68,126.66,0.1]
[1764655792295,12.61921378,126.68,126.66,0.1]
[1764655792502,0.68,126.67,126.66,0.1]
[1764655793803,11.93921378,126.68,126.66,0.1]
[1764655793804,4.04520667,126.68,126.66,0.1]
[1764655794002,12.6172436,126.71,126.68,8.80994492]
[1764655794184,8.57203693,126.71,126.68,8.80994492]
[1764655794506,0.68,126.71,126.68,8.90994492]
[1764655795378,29.08261586,126.76,126.68,12.85515159]
[1764655795582,4.04520667,126.73,126.69,0.1]
[1764655795784,4.72520667,126.73,126.7,8.7]
[1764655795985,0.68,126.73,126.7,8.7]
[1764655796279,12.61602515,126.73,126.7,8.7]
[1764655796480,4.04520667,126.72,126.69,7.89267888]
[1764655796806,4.72520667,126.72,126.7,17.50994492]
[1764655797206,4.72520667,126.72,126.7,8.80994492]
[1764655798399,0.68,126.71,126.7,8.80994492]
[1764655799002,4.72520667,126.72,126.7,8.80994492]
[1764655799312,0.68,126.72,126.7,8.80994492]
[1764655799510,0.68,126.72,126.68,16.308864]
[1764655799511,12.61686871,126.72,126.68,16.308864]
[1764655799818,12.61686871,126.72,126.69,8.7]
[1764655799986,0.68,126.71,126.69,8.7]
[1764655800320,12.61610206,126.73,126.7,8.80994492]
[1764655800612,0.68,126.72,126.7,8.80994492]
[1764655800986,8.57089539,126.73,126.7,8.80994492]
[1764655801213,7.89089539,126.73,126.7,8.80994492]
[1764655801417,8.57089539,126.73,126.7,8.80994492]
[1764655801615,11.93544761,126.74,126.7,16.70258365]
[1764655801801,0.68,126.73,126.7,16.80258365]
[1764655802111,11.93544761,126.74,126.71,0.1]
[1764655802112,0.68,126.74,126.71,0.1]
[1764655802313,11.93482854,126.75,126.72,8.7]
[1764655802490,0.68,126.73,126.72,17.50994492]
[1764655803113,0.68,126.73,126.72,8.7]
[1764655803306,4.72520667,126.73,126.72,8.7]
[1764655803507,0.68,126.73,126.72,8.7]
[1764655804498,4.72520667,126.74,126.72,8.7]
[1764655804703,0.68,126.73,126.72,8.7]
[1764655805811,12.61475302,126.75,126.72,17.50994492]
[1764655805995,0.68,126.74,126.72,17.50994492]
[1764655807995,0.68,126.74,126.72,25.40134228]
[1764655810219,4.04520667,126.76,126.73,8.80994492]
[1764655810423,0.68,126.74,126.73,8.80994492]
[1764655813620,0.68,126.74,126.72,8.7]
[1764655813943,4.72520667,126.74,126.72,17.50994492]
[1764655814297,0.7,126.73,126.72,17.50994492]
[1764655815317,0.7,126.73,126.72,8.7]
[1764655815914,0.7,126.73,126.71,8.80994492]
[1764655815915,12.63610612,126.73,126.71,8.80994492]
[1764655816117,4.04520667,126.72,126.7,8.68]
[1764655816414,0.7,126.72,126.7,8.68]
[1764655816611,0.7,126.71,126.7,17.48994492]
[1764655817610,0.7,126.73,126.71,16.70178315]
[1764655819604,0.7,126.73,126.71,8.80994492]
[1764655822430,3.28683037,126.73,126.71,8.80994492]
[1764655822926,0.7,126.72,126.71,8.80994492]
[1764655824413,0.7,126.72,126.71,8.68]
[1764655824805,11.17824451,126.72,126.71,8.68]
[1764655825022,11.17824451,126.72,126.69,16.57301953]
[1764655825304,0.7,126.71,126.69,16.57301953]
[1764655830736,0.7,126.71,126.7,8.80994492]
[1764655831031,36.0336767,126.75,126.7,8.90994492]
[1764655831032,18.89569437,126.75,126.7,8.90994492]
[1764655831245,0.67,126.73,126.71,8.68]
[1764655831935,0.67,126.73,126.72,8.80994492]
[1764655838011,0.67,126.78,126.72,19.38786324]
[1764655838218,0.67,126.78,126.74,8.80994492]
[1764655838437,0.67,126.78,126.76,8.80994492]
[1764655838641,0.67,126.78,126.77,17.48994492]
[1764655838815,3.25683037,126.78,126.77,8.68]
[1764655840822,0.67,126.78,126.77,8.68]
[1764655841550,0.67,126.78,126.76,7.88883823]
[1764655841731,0.67,126.78,126.77,8.68]
[1764655853161,0.67,126.78,126.76,10.4756686]
[1764655853332,0.67,126.78,126.77,8.68]
[1764655856262,0.67,126.78,126.77,16.56830164]
[1764655856858,2.58683037,126.8,126.78,8.80994492]
[1764655856859,0.69,126.8,126.78,8.80994492]
[1764655857033,15.96936785,126.86,126.8,8.80994492]
[1764655857353,0.69,126.83,126.82,2.58683037]
[1764655858141,0.69,126.83,126.82,10.47202198]
[1764655858359,0.69,126.83,126.82,7.88519161]
[1764655862860,2.58683037,126.85,126.82,19.3819669]
[1764655862861,0.69,126.85,126.82,19.3819669]
[1764655863060,0.69,126.85,126.83,11.26683037]
[1764655863558,0.89,126.86,126.84,2.58683037]
[1764655863762,0.2,126.86,126.85,8.68]
[1764655864060,0.89,126.86,126.85,8.68]
[1764655864264,0.89,126.86,126.85,16.56332676]
[1764655872877,3.47683037,126.86,126.78,0.1]
[1764655873174,2.58683037,126.84,126.81,8.80994492]
[1764655873378,2.58683037,126.84,126.82,8.68]
[1764655873547,0.66,126.83,126.82,8.68]
[1764655874755,0.66,126.85,126.82,27.9619669]
[1764655874962,0.66,126.85,126.83,2.58683037]
[1764655875454,3.24683037,126.85,126.82,17.48994492]
[1764655875862,0.66,126.84,126.82,25.37507465]
[1764655876572,3.24683037,126.84,126.82,25.37507465]
[1764655877375,0.66,126.83,126.82,25.37507465]
[1764655878380,0.66,126.83,126.82,8.68]
[1764655885393,4.69547282,126.83,126.81,7.88561862]
[1764655885694,4.69547282,126.83,126.8,19.71550367]
[1764655885695,4.03547282,126.82,126.8,8.68]
[1764655885893,4.03547282,126.81,126.8,8.68]
[1764655886067,4.69547282,126.81,126.77,7.88782025]
[1764655886270,4.03547282,126.79,126.78,8.68]
[1764655886681,0.66,126.79,126.78,8.68]
[1764655886887,0.66,126.79,126.77,7.88782025]
[1764655887092,4.69547282,126.79,126.78,8.68]
[1764655887290,0.66,126.79,126.78,8.68]
[1764655893473,19.71357739,126.82,126.78,8.68]
[1764655893474,4.03547282,126.81,126.78,8.68]
[1764655893778,0.7,126.81,126.78,8.68]
[1764655893986,0.7,126.8,126.78,8.68]
[1764655903411,0.71,126.83,126.79,20.83247507]
[1764655903589,0.71,126.83,126.81,8.80994492]
[1764655903909,0.71,126.83,126.82,8.68]
[1764655905216,0.71,126.83,126.82,17.48994492]
[1764655905405,0.71,126.85,126.82,17.48994492]
[1764655905622,0.71,126.85,126.83,8.80994492]
[1764655905779,4.74547282,126.85,126.83,17.48994492]
[1764655906214,0.71,126.84,126.83,17.48994492]
[1764655910210,0.71,126.85,126.83,17.48994492]
[1764655910604,0.91,126.86,126.83,25.37440359]
[1764655911019,0.71,126.85,126.83,25.37440359]
[1764655911919,0.71,126.85,126.83,17.48994492]
[1764655912395,0.71,126.85,126.83,25.37435569]
[1764655920030,0.91,126.86,126.83,25.37435569]
[1764655920213,0.71,126.85,126.83,25.37435569]
[1764655925934,0.71,126.85,126.83,16.69435569]
[1764655926230,0.71,126.85,126.84,8.68]
[1764655936339,0.71,126.85,126.83,16.69435569]
[1764655936525,4.03547282,126.84,126.79,17.48994492]
[1764655936719,4.03547282,126.82,126.79,17.48994492]
[1764655937037,0.68,126.84,126.81,4.03547282]
[1764655937210,0.68,126.84,126.82,17.48994492]
[1764655937923,0.68,126.84,126.82,25.37473176]
[1764655938537,0.68,126.85,126.82,25.37473176]
[1764655941340,4.71547282,126.85,126.82,25.37473176]
[1764655941723,0.68,126.84,126.82,25.37473176]
[1764655952452,0.68,126.84,126.82,17.48994492]
[1764655953148,0.68,126.84,126.82,25.37502826]
[1764655953452,0.68,126.84,126.82,17.48994492]
[1764655954854,3.26236512,126.84,126.82,17.48994492]
[1764655955046,0.71,126.83,126.82,17.48994492]
[1764655956853,0.71,126.83,126.79,2.68236512]
[1764655956854,3.29236512,126.83,126.79,7.88671154]
[1764655957058,2.58236512,126.81,126.78,7.88741331]
[1764655957260,2.58236512,126.81,126.79,8.68]
[1764655957438,0.71,126.8,126.79,17.48994492]
[1764655958138,0.71,126.81,126.79,17.48994492]
[1764655958849,2.58236512,126.83,126.8,8.90994492]
[1764655959055,0.71,126.83,126.81,8.68]
[1764655959255,0.71,126.82,126.81,17.48994492]
[1764655959451,0.71,126.83,126.81,17.48994492]
[1764655959658,8.59422816,126.84,126.81,17.48994492]
[1764655959958,0.71,126.83,126.81,17.48994492]
[1764655960365,0.71,126.83,126.81,25.37573265]
[1764655963170,8.58333613,126.85,126.82,8.90994492]
[1764655963352,0.7,126.85,126.83,8.68]
[1764655964837,0.2,126.86,126.84,8.80994492]
[1764655965038,0.9,126.86,126.85,8.68]
[1764655979581,0.2,126.86,126.85,25.47327168]
[1764655979787,0.2,126.86,126.85,25.37327168]
[1764655980981,0.2,126.86,126.85,25.47327168]
[1764655981683,0.2,126.86,126.85,28.0556368]
[1764655981884,0.2,126.86,126.85,27.9556368]
[1764655982182,0.2,126.86,126.85,28.0556368]
[1764655982381,0.2,126.86,126.85,44.3645008]
[1764655982883,0.2,126.86,126.85,47.52293579]
[1764655988788,0.2,126.86,126.85,47.52293579]
[1764655990970,0.2,126.86,126.85,41.78213568]
[1764655991304,0.2,126.86,126.85,44.3645008]
[1764655992689,0.2,126.86,126.85,44.2645008]
[1764655993288,0.2,126.86,126.85,35.5845008]
[1764655993494,0.86,126.86,126.85,41.68213568]
[1764655993697,0.2,126.86,126.85,41.68213568]
[1764655994094,0.2,126.86,126.85,44.2645008]
[1764656000197,0.2,126.86,126.85,35.5845008]
[1764656000396,0.2,126.86,126.85,44.2645008]
[1764656000897,0.2,126.86,126.85,41.68213568]
[1764656001100,0.86,126.86,126.85,41.68213568]
[1764656001598,0.2,126.86,126.85,41.68213568]
[1764656002001,0.2,126.86,126.85,44.2645008]
[1764656002584,0.86,126.86,126.85,44.2645008]
[1764656003903,0.86,126.86,126.85,33.00213568]
[1764656004206,0.86,126.86,126.85,41.68213568]
[1764656016416,0.86,126.86,126.85,8.80994492]
[1764656016592,12.77510663,126.86,126.84,8.68]
[1764656016788,4.74237527,126.85,126.84,8.68]
[1764656017514,0.71,126.85,126.84,8.68]
[1764656017709,0.71,126.85,126.84,17.48994492]
[1764656018495,0.71,126.85,126.84,25.3738932]
[1764656025116,0.71,126.85,126.84,16.6938932]
[1764656025418,0.71,126.85,126.84,25.3738932]
[1764656025830,0.71,126.85,126.84,17.48994492]
[1764656030222,0.71,126.85,126.84,25.3738932]
[1764656030422,0.2,126.86,126.85,8.80994492]
[1764656031619,0.89,126.86,126.85,8.80994492]
[1764656032924,0.89,126.86,126.84,8.68]
[1764656033224,0.69,126.85,126.84,17.48994492]
[1764656039111,0.69,126.85,126.84,8.80994492]
[1764656039306,0.69,126.85,126.84,17.48994492]
[1764656040336,0.69,126.85,126.82,7.88495213]
[1764656040514,0.2,126.86,126.85,8.80994492]
[1764656040717,0.89,126.86,126.85,8.80994492]
[1764656040924,0.2,126.86,126.85,4.03237527]
[1764656041321,0.2,126.86,126.85,12.94232019]
[1764656041738,1e-08,126.86,126.85,15.73065285]
[1764656041912,1e-08,126.86,126.85,23.61105412]
[1764656042526,1e-08,126.86,126.85,29.49438089]
[1764656042854,1e-08,126.86,126.85,28.70604822]
[1764656043034,1e-08,126.86,126.85,30.70604821]
[1764656043811,0.2,126.87,126.85,30.70604821]
[1764656043812,1e-08,126.87,126.86,8.80994492]
[1764656044021,1e-08,126.87,126.86,21.52232019]
[1764656044837,1e-08,126.87,126.86,29.40502553]
[1764656045043,1e-08,126.87,126.86,33.6374008]
[1764656049645,1e-08,126.87,126.86,35.63740079]
[1764656051150,1e-08,126.87,126.86,33.6374008]
[1764656051351,1e-08,126.87,126.86,35.63740079]
[1764656054347,1e-08,126.87,126.86,33.6374008]
[1764656056047,1e-08,126.87,126.86,35.63740079]
[1764656057158,1e-08,126.87,126.86,33.6374008]
[1764656057670,1e-08,126.87,126.86,35.63740079]
[1764656057952,1e-08,126.87,126.86,33.6374008]
[1764656058255,1e-08,126.87,126.86,35.63740079]
[1764656064164,1e-08,126.87,126.86,36.42567132]
[1764656064336,1e-08,126.87,126.86,34.97111262]
[1764656064533,0.2,126.91,126.86,94.0914027]
[1764656064731,0.92,126.91,126.9,11.38776149]
[1764656065057,0.92,126.91,126.9,20.06776149]
[1764656066250,0.2,126.91,126.9,27.94798213]
[1764656066452,1e-08,126.91,126.9,27.94798213]
[1764656066750,1e-08,126.91,126.9,30.5257987]
[1764656067140,1e-08,126.91,126.9,33.68298722]
[1764656067339,1e-08,126.91,126.9,41.41643693]
[1764656069257,0.34200001,126.92,126.9,61.11698854]
[1764656069456,0.34200001,126.92,126.91,11.38776149]
[1764656070529,0.34200001,126.92,126.91,19.2673612]
[1764656072262,0.2,126.93,126.92,8.80994492]
[1764656072445,0.87,126.93,126.92,20.06776149]
[1764656073461,0.87,126.93,126.92,44.25560437]
[1764656074957,0.67,126.95,126.94,16.308864]
[1764656075161,0.67,126.95,126.94,36.37662549]
[1764656075635,0.67,126.95,126.94,8.08994492]
[1764656075839,0.67,126.95,126.94,16.76994492]
[1764656077939,0.67,126.95,126.94,15.96768243]
[1764656078139,0.67,126.95,126.94,24.64768243]
[1764656081169,0.67,126.95,126.94,27.225499]
[1764656081543,0.2,126.96,126.94,46.91984278]
[1764656081758,0.2,126.96,126.95,2.57781657]
[1764656081953,0.85,126.96,126.95,2.57781657]
[1764656082271,0.85,126.96,126.95,10.45493354]
[1764656085267,0.2,126.96,126.95,19.26487846]
[1764656085643,0.85,126.96,126.95,19.26487846]
[1764656086646,0.2,126.96,126.95,19.26487846]
[1764656088064,0.2,126.96,126.95,27.92487846]
[1764656088065,0.85,126.96,126.95,27.92487846]
[1764656089052,0.2,126.96,126.95,27.92487846]
[1764656098953,0.85,126.96,126.95,25.34706189]
[1764656099161,0.2,126.96,126.95,27.92487846]
[1764656101060,0.85,126.96,126.95,27.92487846]
[1764656101265,0.2,126.96,126.95,27.92487846]
[1764656103081,0.85,126.96,126.95,27.92487846]
[1764656107078,0.85,126.96,126.95,19.26487846]
[1764656107277,0.85,126.96,126.94,36.00320778]
[1764656107278,3.42781657,126.96,126.93,16.6880126]
[1764656107478,3.22781657,126.95,126.93,16.6880126]
[1764656107976,0.65,126.94,126.93,16.6880126]
[1764656110096,0.65,126.94,126.93,8.80994492]
[1764656113089,0.65,126.94,126.9,46.46635202]
[1764656113290,3.22781657,126.94,126.91,17.46994492]
[1764656113499,2.57781657,126.92,126.88,7.88089337]
[1764656113791,2.57781657,126.91,126.89,17.46994492]
[1764656114301,0.7,126.9,126.89,17.46994492]
[1764656115403,0.7,126.92,126.89,28.58860316]
[1764656115691,10.45570448,126.94,126.89,28.58860316]
[1764656115692,0.7,126.91,126.89,27.92860316]
[1764656116060,0.7,126.91,126.9,11.38776149]
[1764656116263,0.7,126.91,126.9,8.80994492]
[1764656116492,0.7,126.91,126.9,16.69016556]
[1764656117771,0.7,126.91,126.9,8.80994492]
[1764656117974,0.7,126.91,126.9,16.69016556]
[1764656118996,0.7,126.91,126.9,25.35016556]
[1764656120296,0.7,126.94,126.9,48.28853374]
[1764656120502,0.7,126.93,126.91,0.66]
[1764656120791,0.7,126.93,126.92,20.06776149]
[1764656121261,0.7,126.93,126.92,25.3689238]
[1764656122208,0.7,126.93,126.92,17.48994492]
[1764656128587,4.72885865,126.93,126.91,7.87938167]
[1764656128783,4.02885865,126.92,126.91,8.68]
[1764656128987,4.72885865,126.92,126.91,8.68]
[1764656131197,0.7,126.92,126.91,8.68]
[1764656132810,4.72885865,126.92,126.9,17.48994492]
[1764656133190,0.68,126.91,126.9,17.48994492]
[1764656134715,4.70885865,126.91,126.9,8.68]
[1764656134901,12.58845836,126.91,126.9,8.68]
[1764656139319,12.58845836,126.91,126.88,17.48994492]
[1764656139518,0.68,126.9,126.88,17.48994492]
[1764656139703,0.68,126.9,126.89,17.48994492]
[1764656141702,12.58907929,126.9,126.87,8.80994492]
[1764656142036,4.02885865,126.89,126.87,8.68]
[1764656142201,0.68,126.88,126.87,8.68]
[1764656143927,4.70885865,126.88,126.85,16.69319602]
[1764656144214,4.70885865,126.88,126.86,8.68]
[1764656144422,0.68,126.87,126.86,17.48994492]
[1764656146734,7.88132611,126.89,126.87,8.80994492]
[1764656147030,8.56132611,126.89,126.87,8.80994492]
[1764656147428,0.68,126.88,126.87,8.80994492]
[1764656148129,0.68,126.88,126.86,8.68]
[1764656148301,0.68,126.88,126.86,17.48994492]
[1764656149326,0.68,126.88,126.86,18.19994492]
[1764656149530,7.88132611,126.89,126.86,25.3725735]
[1764656149833,0.68,126.9,126.87,9.51994492]
[1764656150017,0.68,126.9,126.88,8.68]
[1764656151632,12.58944248,126.9,126.88,8.68]
[1764656152132,0.68,126.89,126.88,8.68]
[1764656155731,19.89067002,126.97,126.89,16.69078659]
[1764656155910,0.68,126.95,126.91,12.83880357]
[1764656156108,0.68,126.95,126.92,8.68]
[1764656156530,0.2,126.96,126.94,8.80994492]
[1764656156735,0.2,126.96,126.94,9.51994492]
[1764656157634,0.2,126.96,126.94,17.39710253]
[1764656158839,0.2,126.96,126.94,21.42596118]
[1764656161944,0.88,126.96,126.94,17.39710253]
[1764656165037,0.2,126.96,126.94,21.42596118]
[1764656166147,0.2,126.96,126.95,30.10592054]
[1764656166516,0.2,126.96,126.95,54.49005463]
[1764656168452,0.2,126.96,126.95,50.46119598]
[1764656168747,0.2,126.96,126.95,54.49005463]
[1764656172754,0.2,126.96,126.95,46.41478454]
[1764656174888,1e-08,126.96,126.95,30.10592054]
[1764656175041,1e-08,126.97,126.96,9.49994492]
[1764656175363,0.2,126.98,126.97,8.80994492]
[1764656175546,0.2,126.98,126.97,38.51766757]
[1764656177055,0.2,126.98,126.97,46.39354376]
[1764656177553,0.1,127.05,127.03,8.80994492]
[1764656177865,0.1,127.05,127.04,37.82766757]
[1764656178265,0.2,127.08,127.05,8.80994492]
[1764656178559,0.2,127.09,127.07,8.80994492]
[1764656178765,0.2,127.09,127.08,41.87652622]
[1764656179367,0.2,127.09,127.08,49.74558508]
[1764656179746,0.89,127.09,127.08,45.71672643]